Cogmind - Beta 16.1 @@@ ROGUE MODE // 2026.02.11 @ 17:09:14 Player: BatSpy Result: Destroyed by G-47 Trooper with Particle Gun Performance ------------- Evolutions (2) 1000 Regions Visited (5) 1000 Robots Destroyed (15) 75 Value Destroyed (520) 520 Prototype IDs (25) 500 Alien Tech Used (0) 0 Bonus (300) 300 TOTAL SCORE: 3395 Bonus ------- Aligned with FarCom 300 Cogmind --------- Core Integrity 0/550 Matter 174/300 Energy 83/100 System Corruption 0% Temperature Cool (9) Movement Treading (160) Location -8/Materials Parts ------- > --- POWER (2) -------- (None) > --- PROPULSION (3) --- Improved Treads Improved Treads Improved Treads > --- UTILITY (4) ------ Signal Interpreter Improved Terrain Scan Processor > --- WEAPON (2) ------- (None) > --- INVENTORY (5) ---- Experimental Sensor Array Improved Targeting Computer Recoil Stabilizer Field Lobotomy Kit (5) Peak State ------------ > --- POWER ------------ Ion Engine Reinforced Ion Engine > --- PROPULSION ------- Aluminum Leg Aluminum Leg > --- UTILITY ---------- Signal Interpreter ECM Suite > --- WEAPON ----------- Field Laser Grenade Launcher > --- INVENTORY -------- Experimental Sensor Array Improved Targeting Computer Field Lobotomy Kit Mining Laser Welding Torch [Rating: 13] Favorites ----------- Power Ion Engine Engine Ion Engine Power Core Light Nuclear Core Propulsion Aluminum Leg Treads Improved Treads Leg Aluminum Leg Utility ECM Suite Device ECM Suite Storage Small Storage Unit Processor Signal Interpreter Protection Weapon Shielding Weapon Medium Laser Energy Gun Medium Laser Launcher Grenade Launcher Special Weapon Mining Laser Build | -11 -10 -10 -10 -9 -8 ------- Run | Yrd Mat Min Exi Min Mat Slots Evolved 4 | . . . . . 4 Power 1 | . . . . . 1 Propulsion 1 | . . . . . 1 Utility 2 | . . . . . 2 Weapon . | . . . . . . Parts Attached 24 | 6 3 4 . . 11 Power 4 | 1 . . . . 3 Engine 3 | 1 . . . . 2 Core 1 | . . . . . 1 Reactor . | . . . . . . Propulsion 6 | 2 . . . . 4 Treads 3 | . . . . . 3 Leg 3 | 2 . . . . 1 Wheel . | . . . . . . Hover . | . . . . . . Flight . | . . . . . . Utility 7 | 1 3 . . . 3 Device 3 | . 2 . . . 1 Storage 1 | 1 . . . . . Processor 2 | . 1 . . . 1 Hackware . | . . . . . . Protection 1 | . . . . . 1 Artifact . | . . . . . . Weapon 7 | 2 . 4 . . 1 Energy Gun 4 | 2 . 1 . . 1 Energy Cannon . | . . . . . . Ballistic Gun . | . . . . . . Ballistic Cannon . | . . . . . . Launcher 1 | . . 1 . . . Special Weapon 2 | . . 2 . . . Impact Weapon . | . . . . . . Slashing Weapon . | . . . . . . Piercing Weapon . | . . . . . . Special Melee Weapon . | . . . . . . Unidentified Prototypes . | . . . . . . Parts Lost 14 | . 1 . . . 13 Power 4 | . . . . . 4 Propulsion 3 | . . . . . 3 Utility 4 | . 1 . . . 3 Weapon 3 | . . . . . 3 Highest Loss Streak 13 | . 1 . . . 13 To Critical Strikes . | . . . . . . Average Backups 4 | 2 4 4 4 4 4 Power . | . . . 1 . . Propulsion 1 | . 2 2 1 . . Utility . | . . . . 1 2 Weapon 1 | 1 2 1 1 1 . Tool/Special . | . . . . . . Unused Backups 10 | . 1 2 2 1 4 Power 1 | . . . . 1 . Propulsion 4 | . . 2 2 . . Utility 3 | . . . . . 3 Weapon 1 | . 1 . . . . Tool/Special 1 | . . . . . 1 Average Slot Usage (%) 93 | . 94 100 100 100 56 Engine 13 | . 14 14 14 14 7 Leg 26 | . 28 28 28 28 12 Device 13 | . 14 14 14 14 7 Processor 12 | . 3 14 14 14 9 Energy Gun 14 | . 28 14 14 14 6 Launcher 2 | . . 9 . 1 5 Special Weapon 8 | . . 4 14 12 . Peak Build Rating 13 | 6 7 7 8 9 13 Average Rating 7 | 4 6 7 7 8 9 On Entrance 6 | . 6 7 7 8 9 Avg Prop Armor Cover (%) . | . . . . . . Naked Turns . | . . . . . . Heaviest Build 23 | 14 16 12 10 12 23 Greatest Support 69 | 20 20 20 20 20 69 Greatest Overweight (x) 1 | . . . . . 1 Average Overweight (x) . | . . . . . . Largest Inventory Capacity 8 | 8 8 5 5 5 5 Average Capacity 5 | 6 6 5 5 5 5 Most Carried 5 | 5 5 5 5 5 5 Average Carried 4 | 2 4 4 4 4 4 Final Capacity 8 | 8 5 5 5 5 5 Final Carried 5 | 3 5 5 4 5 4 Class Distribution -------------------- 100% | Mutant Dominant Class ---------------- Mutant | -10/Materials Mutant | -10/Mines Mutant | -10/Exiles Mutant | -9/Mines Mutant | -8/Materials Resources | -11 -10 -10 -10 -9 -8 ----------- Run | Yrd Mat Min Exi Min Mat Matter Collected 414 | 207 78 40 . 16 73 Remotely . | . . . . . . Salvage Created 428 | . 121 . . 58 249 Parts 18 | . 5 . . 5 8 Haulers Intercepted . | . . . . . . Recyclers Shooed 1 | . . . . . 1 Parts Field Recycled . | . . . . . . Retrieved Matter . | . . . . . . Parts Self-Destructed . | . . . . . . Prevented . | . . . . . . Parts Restored . | . . . . . . Kills | -11 -10 -10 -10 -9 -8 ------- Run | Yrd Mat Min Exi Min Mat Combat Hostiles Destroyed 12 | . 3 . . 3 6 Guns 3 | . 2 . . . 1 AOE 9 | . 1 . . 3 5 Classes Destroyed 5 | . 1 . . . 4 Worker 1 | . . . . . 1 Builder 1 | . . . . . 1 Recycler 1 | . . . . . 1 Grunt 11 | . 3 . . 3 5 Brawler 1 | . . . . . 1 Best Kill Streak 4 | . 3 . . 3 4 Combat Bots Only 3 | . 3 . . 3 3 Max Kills in Single Turn 4 | . 1 . . 2 4 Gunslinging . | . . . . . . Exploded 2 | . 1 . . 2 2 Melee . | . . . . . . Uniques/NPCs Destroyed . | . . . . . . Combat | -11 -10 -10 -10 -9 -8 -------- Run | Yrd Mat Min Exi Min Mat Hostile Shots Fired 135 | . 14 . . 5 116 Missed 41 | . 5 . . 2 34 Hits 94 | . 9 . . 3 82 Projectile 94 | . 9 . . 3 82 Critical Strikes 3 | . . . . . 3 Damage Taken 1522 | . 102 . . 33 1387 Core 574 | . 12 . . . 562 Absorbed by Shields . | . . . . . . Redirected to Shielding 31 | . . . . . 31 Core Remaining (%) 97 | 100 . . . 95 . Volleys Fired 53 | . 8 10 . 13 22 Largest 2 | . 2 2 . 2 2 Hottest 150 | . 90 150 . 150 93 Shots Fired 86 | . 16 14 . 26 30 Gun 54 | . 16 6 . 13 19 Cannon . | . . . . . . Launcher 13 | . . . . 5 8 Special 19 | . . 8 . 8 3 Kinetic . | . . . . . . Thermal 65 | . 8 14 . 21 22 Explosive 13 | . . . . 5 8 Electromagnetic 8 | . 8 . . . . Robot Hit Streak 6 | . 5 . . 6 4 Robot Miss Streak 3 | . 3 2 . 1 3 Penetration Max . | . . . . . . Secondary Targets . | . . . . . . Shots Hit Robots 33 | . 11 . . 7 15 Core Hits 34 | . 5 . . 10 19 Critical Kills . | . . . . . . Critical Parts Destroyed . | . . . . . . Critical Strikes 1 | . 1 . . . . Burn 1 | . 1 . . . . Melee Attacks . | . . . . . . Impact . | . . . . . . Slashing . | . . . . . . Piercing . | . . . . . . Sneak Attacks . | . . . . . . Combat Hostiles . | . . . . . . Follow-up Attacks . | . . . . . . Damage Inflicted 1644 | . 207 . . 321 1116 Guns 346 | . 155 . . 38 153 Cannons . | . . . . . . Explosions 1292 | . 52 . . 283 957 Melee . | . . . . . . Ramming . | . . . . . . Kinetic . | . . . . . . Thermal 322 | . 125 . . 38 159 Explosive 1240 | . . . . 283 957 Electromagnetic 82 | . 82 . . . . Impact . | . . . . . . Slashing . | . . . . . . Piercing . | . . . . . . Highest Corruption . | . . . . . . Average Corruption . | . . . . . . Corruption Purged . | . . . . . . Corruption Blocked . | . . . . . . Overload Shots . | . . . . . . Overflow Damage 47 | . . . . . 47 Projectiles . | . . . . . . Explosions 47 | . . . . . 47 Melee . | . . . . . . Knockbacks . | . . . . . . Impact . | . . . . . . Kinetic . | . . . . . . Secondary . | . . . . . . Self-Inflicted Damage 149 | . . . . . 149 Shots 5 | . . . . . 5 Rammed . | . . . . . . Targets Rammed . | . . . . . . Kicked . | . . . . . . Crushed . | . . . . . . Highest Temperature 264 | . 264 132 . 190 155 Average Temperature 79 | . 136 52 . 74 62 Received Heat Transfer 576 | . 54 . . 18 504 Siege Activations . | . . . . . . Martial Activations . | . . . . . . Shielding Activations . | . . . . . . Robots Disrupted . | . . . . . . Combat Hostiles . | . . . . . . Robots Corrupted . | . . . . . . Combat Hostiles . | . . . . . . Parts Fried . | . . . . . . Impact Corruptions . | . . . . . . Robots Melted . | . . . . . . Combat Hostiles . | . . . . . . Parts Melted 1 | . 1 . . . . Heat Transferred 927 | . 396 . . 111 420 Parts Sabotaged . | . . . . . . Parts Stolen . | . . . . . . Parts Stripped . | . . . . . . Power Chain Reactions 1 | . 1 . . . . Alert | -11 -10 -10 -10 -9 -8 ------- Run | Yrd Mat Min Exi Min Mat Maximum Alert Level . | . . . . . . Low Security (%) 100 | 100 100 100 . 100 100 Level 1 . | . . . . . . Level 2 . | . . . . . . Level 3 . | . . . . . . Level 4 . | . . . . . . Level 5 . | . . . . . . High Security . | . . . . . . Max Security . | . . . . . . Peak Influence 176 | . 54 2 . 69 176 Initial 17 | . . . . . 17 Average 14 | . 12 . . 7 50 Influence Increases 444 | . 80 3 . 105 256 Destroy 0b10 Robot/C 260 | . 60 . . 80 120 Destroy 0b10 Robot/NC 15 | . . . . . 15 Destroy Leader 40 | . 10 . . 10 20 Successful Hack 16 | . 6 . . . 10 Disable Machine 45 | . . . . . 45 Destroy Structure 68 | . 4 3 . 15 46 Influence Decreases 428 | . 80 3 . 60 285 Entered New Map 28 | . . . . . 28 Time Decay 254 | . 70 3 . 54 127 Lost Part 140 | . 10 . . . 130 Lost Ally 6 | . . . . 6 . Squads Dispatched 3 | . 2 . . . 1 Investigation 1 | . 1 . . . . Extermination . | . . . . . . Reinforcement 2 | . 1 . . . 1 Assault . | . . . . . . Garrison . | . . . . . . Intercept . | . . . . . . Searches Triggered . | . . . . . . Construction Impeded 1 | . . . . . 1 Haulers Reinforced . | . . . . . . Active Scanning Responses . | . . . . . . Cargo Convoy Interrupts . | . . . . . . Stealth | -11 -10 -10 -10 -9 -8 --------- Run | Yrd Mat Min Exi Min Mat Distress Signals 4 | . 1 . . 2 1 Communications Jammed . | . . . . . . Distress Signals . | . . . . . . Times Spotted 23 | . 6 . . 4 13 Peak Tracking Total 7 | . 3 . . 2 7 Tactical Retreats 1 | . . . . 1 . ECM-based Alert Blocks 1 | . . . . 1 . Traps | -11 -10 -10 -10 -9 -8 ------- Run | Yrd Mat Min Exi Min Mat Traps Triggered 1 | . 1 . . . . Indirectly . | . . . . . . Trap Hack Attempts . | . . . . . . Triggered . | . . . . . . Disarmed . | . . . . . . Reprogrammed . | . . . . . . Reused . | . . . . . . Traps Extracted . | . . . . . . Installed . | . . . . . . Triggered . | . . . . . . Machines | -11 -10 -10 -10 -9 -8 ---------- Run | Yrd Mat Min Exi Min Mat Machines Disabled 3 | . . . . . 3 Max in Single Turn 2 | . . . . . 2 Machines Repaired . | . . . . . . Machines Dismantled . | . . . . . . Machines Sabotaged . | . . . . . . Overloaded Fab Kills . | . . . . . . Hacking | -11 -10 -10 -10 -9 -8 --------- Run | Yrd Mat Min Exi Min Mat Machines Accessed 8 | . 1 . 5 . 2 Terminals 3 | . 1 . . . 2 Fabricators . | . . . . . . Repair Stations . | . . . . . . Recycling Units . | . . . . . . Scanalyzers . | . . . . . . Garrison Access . | . . . . . . Total Hacks 59 | . 3 . 50 . 6 Successful 56 | . 2 . 50 . 4 Failed 3 | . 1 . . . 2 Catastrophic . | . . . . . . Database Lockouts . | . . . . . . Manual 5 | . 3 . 1 . 1 Terminals 9 | . 3 . . . 6 Fabricators . | . . . . . . Repair Stations . | . . . . . . Recycling Units . | . . . . . . Scanalyzers . | . . . . . . Garrison Access . | . . . . . . Terminal Hacks 53 | . . . 50 . 3 Record 49 | . . . 49 . . Prototype ID Bank 1 | . . . . . 1 Investigation Status 1 | . . . . . 1 Zone Layout 1 | . . . . . 1 Proto ID Catalog 1 | . . . 1 . . Fabricator Hacks . | . . . . . . Repair Station Hacks . | . . . . . . Recycling Unit Hacks . | . . . . . . Scanalyzer . | . . . . . . Garrison Access Hacks . | . . . . . . Unauthorized Hacks 3 | . 2 . . . 1 Terminals 3 | . 2 . . . 1 Assimilate 1 | . 1 . . . . Botnet 2 | . 1 . . . 1 Fabricators . | . . . . . . Repair Stations . | . . . . . . Recycling Units . | . . . . . . Scanalyzers . | . . . . . . Garrison Access . | . . . . . . Data Cores Recovered . | . . . . . . Used . | . . . . . . Hacking Detections 3 | . 1 . . . 2 Full Trace Events . | . . . . . . Feedback Events . | . . . . . . Feedback Blocked . | . . . . . . Robot Schematics Acquired . | . . . . . . Robots Built . | . . . . . . Authchips . | . . . . . . Time . | . . . . . . Total Robot Build Rating . | . . . . . . Part Schematics Acquired . | . . . . . . Parts Built . | . . . . . . Authchips . | . . . . . . Time . | . . . . . . Total Part Build Rating . | . . . . . . Part Studies Acquired . | . . . . . . Parts Repaired . | . . . . . . Time . | . . . . . . Parts Recycled . | . . . . . . Recycled Matter . | . . . . . . Retrieved Matter . | . . . . . . Retrieved Components . | . . . . . . Parts Scanalyzed . | . . . . . . Part Schematics Acquired . | . . . . . . Parts Damaged . | . . . . . . Bothacking | -11 -10 -10 -10 -9 -8 ------------ Run | Yrd Mat Min Exi Min Mat Used RIF Installer . | . . . . . . Robots Hacked . | . . . . . . Non-combat . | . . . . . . Combat . | . . . . . . Robot Hacks Applied . | . . . . . . Relay Couplers Released . | . . . . . . Fabnet Peak Effective % . | . . . . . . Robots Rewired . | . . . . . . Allies Hacked . | . . . . . . Hacks Repelled . | . . . . . . Allies | -11 -10 -10 -10 -9 -8 -------- Run | Yrd Mat Min Exi Min Mat Total Allies 4 | . . 1 . 3 . Largest Group 3 | . . 1 1 3 . Highest-Rated Group 40 | . . 31 31 40 . Highest-Rated Ally 31 | . . 31 31 16 . Total Orders 1 | . . . . 1 . AID 1 | . . . . 1 . Ally Attacks 13 | . . . . 13 . Total Damage 117 | . . . . 117 . Kills 1 | . . . . 1 . Allies Corrupted . | . . . . . . Allies Melted . | . . . . . . Intel | -11 -10 -10 -10 -9 -8 ------- Run | Yrd Mat Min Exi Min Mat Active Infowar (turns) 2296 | . 266 371 839 608 212 Terrain 66 | . 66 . . . . ECM 2296 | . 266 371 839 608 212 Robot Analysis Total . | . . . . . . Derelict Logs Recovered 2 | . . 1 . 1 . Drone Launches . | . . . . . . Drone Recoveries . | . . . . . . Exploration | -11 -10 -10 -10 -9 -8 ------------- Run | Yrd Mat Min Exi Min Mat Turns Passed 2487 | 52 312 371 839 608 305 Spaces Moved 1852 | 41 232 271 698 450 160 Core 74 | 15 . . . . 59 Treads 17 | . . . . . 17 Legs 1761 | 26 232 271 698 450 84 Wheels . | . . . . . . Hover . | . . . . . . Flight . | . . . . . . Fastest Speed 50 | 50 120 120 120 120 50 Average Speed 118 | 94 120 120 120 120 108 Slowest Speed 190 | 120 120 120 120 120 190 Overloaded Moves . | . . . . . . Propulsion Burnouts . | . . . . . . Robots Hopped . | . . . . . . Potential Cave-ins . | . . . . . . Cave-ins Triggered . | . . . . . . Exploration Rate (%) 46 | 4 38 37 93 89 20 Regions Visited 5 Branch Regions 3 Pre-discovered Areas 1 | . . . 1 . . Known Exits Taken 4 | . 1 1 1 1 . Unknown Exits Taken 1 | 1 . . . . . Scrap Searched 4 | . . . . 4 . Spaces Dug 6 | . . 4 . 2 . Terrain Destroyed 84 | . 4 4 . 25 51 Melee . | . . . . . . Projectile 6 | . . 4 . 2 . AOE 78 | . 4 . . 23 51 Terrain Rammed . | . . . . . . Walls Destroyed . | . . . . . . Machines Disabled . | . . . . . . Actions | -11 -10 -10 -10 -9 -8 --------- Run | Yrd Mat Min Exi Min Mat Total 2030 | 54 249 293 700 476 258 Wait 67 | . . . . 10 57 Move 1847 | 40 231 270 697 449 160 Hop . | . . . . . . Pick Up 24 | 8 5 4 1 2 4 Fast Attach 9 | 1 1 . . . 7 Attach 11 | 5 1 . . . 5 Detach . | . . . . . . Swap 8 | . 1 5 . 1 1 Drop 11 | . 2 4 2 1 2 Fire 53 | . 8 10 . 13 22 Melee . | . . . . . . Ram . | . . . . . . Kick . | . . . . . . Crush . | . . . . . . Escape Stasis . | . . . . . . Rewire . | . . . . . . Trap . | . . . . . . Miscellaneous . | . . . . . . Route ------- -11/Scrapyard -10/Materials -10/Mines (discovered 3 exits: *Mat x2 / *Exi) -10/Exiles (discovered 2 exits: *Min x2) -9/Mines (discovered 2 exits: *Mat x2) -8/Materials (discovered 2 exits: Fac / [*Sto]) History --------- Turn | Location | Event 9 | -11/Scrapyard | Discovered new exit (range 14) 53 | -11/Scrapyard | Entered Materials 306 | -10/Materials | Build established: Mutant 338 | -10/Materials | Discovered new exit (range 14) 356 | -10/Materials | Identified exit to Mines 365 | -10/Materials | Entered Mines 366 | -10/Mines | Assembled infested the area 368 | -10/Mines | Met a Derelict bent on vengeance 473 | -10/Mines | Discovered new exit (range 12) 485 | -10/Mines | Identified exit to Materials 640 | -10/Mines | Learned 2 Materials zone layouts 640 | -10/Mines | Discovered exit to Materials (range 6) 645 | -10/Mines | Received a Mining Laser from a helpful Derelict 730 | -10/Mines | Discovered new exit (range 5) 733 | -10/Mines | Identified exit to Exiles 736 | -10/Mines | Entered Exiles 736 | -10/Exiles | Accompanied by 1 ally 753 | -10/Exiles | Discovered new exit (range 15) 769 | -10/Exiles | Identified exit to Mines 795 | -10/Exiles | Met 8R-AWN 816 | -10/Exiles | Met EX-HEX 891 | -10/Exiles | Met EX-DEC 919 | -10/Exiles | Visited The Gauntlet 1098 | -10/Exiles | Met EX-BIN 1232 | -10/Exiles | Learned location of Zion (-6) 1290 | -10/Exiles | Discovered exit to Mines (range 15) 1378 | -10/Exiles | Aligned with FarCom system 1380 | -10/Exiles | Given EX-Vault access code 1407 | -10/Exiles | Opened EX-Vault 1438 | -10/Exiles | Warned to stay clear of 0b10 Research branches 1466 | -10/Exiles | Found Field Lobotomy Kit 1575 | -10/Exiles | Left Exiles lab with Field Lobotomy Kit 1575 | -10/Exiles | Entered Mines 1772 | -9/Mines | Assisted by bots powering up and referring to "LRC-V3" 1808 | -9/Mines | Discovered new exit (range 12) 1820 | -9/Mines | Identified exit to Materials 1996 | -9/Mines | Found a hidden stash of uninstalled traps 2028 | -9/Mines | Learned Materials terminal intel 2036 | -9/Mines | Found a damaged Exp. Sensor Array with a note attached 2039 | -9/Mines | Found Prototype Device 2062 | -9/Mines | Excavation squad dispatched 2062 | -9/Mines | A large section of the Mines collapsed 2175 | -9/Mines | Discovered exit to Materials (range 7) 2183 | -9/Mines | Entered Materials 2183 | -8/Materials | Evolved 4 slots: Power x1, Propulsion x1, Utility x2 2184 | -8/Materials | Identified exit to Factory 2185 | -8/Materials | Loaded intel: 11 terminal locations 2254 | -8/Materials | Discovered new exit (range 17) 2389 | -8/Materials | Core integrity fell below 50% 2427 | -8/Materials | Core integrity fell below 20% 2463 | -8/Materials | Lost 13 parts (4p3n3u3w) 2488 | -8/Materials | Destroyed by G-47 Trooper with Particle Gun Last Messages --------------- 02421_ U-05 Engineer lays Concrete. 02421_ ALERT: Construction progress impeded, dispatching reinforcements to local area. 02422_ Slug penetrates Wall. 02422_ Lgt. Ion Engine destroyed. 02426_ The unstable cave ceiling collapses. 02426_ Dropped Welding Torch. 02426_ Acquired 36 matter. 02430_ T-07 Excavator is excavating. 02431_ K-01 Serf collects debris. 02432_ Penetrated by Slug. 02432_ ECM Suite destroyed. 02434_ K-01 Serf collects debris. 02435_ Slug penetrates K-01 Serf. 02435_ K-01 Serf destroyed. 02442_ W-25 Informer sends out distress signal. 02452_ Acquired Recoil Stabilizer. 02453_ Acquired Imp. Treads. 02455_ Acquired Imp. Terrain Scan Processor. 02457_ Acquired Imp. Treads. Map ----- +----------------------------------------------------+ | ?????????????????????????? #??????# "" # #? | | ?????????????????????????? #??????# "G # #? | | ?????????????????????????? #??????# "" # ## | | ?????????????????????????? #??????# # | | ?????????????????????????? #??????########### | | ?????????????????????????? #????????????????# ## | | ??????????????????????????##????????????????# #? | | ??????????????????????????#############?????# ## | | ?????????????????????????? #?????# ## | | ?????????????????????????? #?????# ## | | ?????????????????????????? #?????# ## | | ??????????????????????? ?? #?????# ## | | ?????????????????????? ? #?????# ## | | ???????????????? ????? #################### ## | | ?????????????? ????? ## | | ?????????????? ???? ^ | | ????????????? ???? h ! | | ?????????????? ???"" """ Y | | ??????????????? """"" """"" | | ???????????????? """"" """"" | | ????????????????? """"" """"" | | ???????????????????# """ """ g g =^ " " | | ???????????????????# ! "R" | | ???????????????????# ! ! """ | | ???????????????????# ! | | ???????????????????# @ | | ???????????????????# #################+### | | ???????????????????## #?????????????????????##+# | | ????????????????????# ?????????????????????????? | | ????????????????????# ??????????????????????????? | | ??????????????????? t ???????????????????????????? | | ?????????????????? #????????????????????????????? | | ????????????????? ?????????????????????????????? | | ????????????????! ??????????????????????????????? | | ??????????????? ???????????????????????????????? | | ?????????????""T""???????????????????????????????? | | ?????????????"""""???????????????????????????????? | | ?????????????????????????????????????????????????? | | ?????????????????????????????????????????????????? | | ?????????????????????????????????????????????????? | | | | | | | | | | | | | | | | | | | | | +----------------------------------------------------+ Best States ------------- Heat Dissipation 31 Energy Generation 17 Energy Capacity 415 Matter Stores 300 Matter Capacity 300 Sight Range 16 Terrain Scan Range 14 Terrain Scan Density 110 ECM Strength 1 Weapon Shielding 33 Evasion (%) 55 Recoil Reduction 3 Item Schematics ----------------- None Robot Schematics ------------------ None Fabricated ------------ Nothing Repaired ---------- Nothing Studied --------- None Alien Tech Used ----------------- None Achievements -------------- I Have A Map? Sixth Sense Challenges ------------ None Game ------ Seed ShadingHeavyReactor Manual? 0 Play Time 00:26:02 Cumulative 47.3 hours Start 2026.02.11 @ 00:13:31 End 2026.02.11 @ 17:09:14 Sessions 3 Manual Loads 0 Difficulty Rogue Special Mode None Game No. 86 Rogue 86 Adventurer 0 Explorer 0 Win Type - Total 0 Types 0/0/0/0/0/0/0/0/0/0 Lore% 20 Gallery% 38 Achievement% 22 Wizard Run 0 Options --------- Layout 1 ASCII 0 Keyboard 0 Movement Mouse Keybinds 0 Fullscreen 1 Font 32/SmallcapsGlow Map View 50x35 Zoom Use 0% Tactical HUD 1 Map Filters NONE Filters NONE Steam 1 RUN: 37b531a6-9f63-434e-9ca7-08d28937076c